bitfinex-derivatives/quotes_BTCF0:USTF0_20250929
["timestamp","ask_amount","ask_price","bid_price","bid_amount"]
[1759189579981,0.38354463,114330.0,114320.0,1.87151185]
[1759189580383,0.1107825,114330.0,114320.0,1.87151185]
[1759189585379,0.1107825,114330.0,114320.0,1.08015185]
[1759189585581,0.1107825,114330.0,114320.0,1.87139185]
[1759189590587,0.1107825,114330.0,114320.0,1.08015185]
[1759189590888,0.38354463,114330.0,114320.0,1.87115185]
[1759189593493,0.38354463,114330.0,114320.0,1.87107185]
[1759189595397,0.1107825,114330.0,114320.0,1.87107185]
[1759189595596,0.38354463,114330.0,114320.0,1.87107185]
[1759189596397,0.38354463,114330.0,114320.0,1.08015185]
[1759189596597,0.38354463,114330.0,114320.0,1.87099185]
[1759189597000,0.0874125,114330.0,114320.0,1.87099185]
[1759189597199,0.0878125,114330.0,114320.0,1.87099185]
[1759189597598,0.0874125,114330.0,114320.0,1.87099185]
[1759189597798,0.0878125,114330.0,114320.0,1.87099185]
[1759189599205,0.0878125,114330.0,114320.0,1.08015185]
[1759189599502,0.0878125,114330.0,114320.0,1.87087185]
[1759189600404,0.0878125,114330.0,114320.0,1.08015185]
[1759189600902,0.1091225,114330.0,114320.0,0.53462759]
[1759189601101,0.1091225,114330.0,114320.0,1.87083185]
[1759189604402,0.1091225,114330.0,114320.0,0.53462759]
[1759189604609,0.1091225,114330.0,114320.0,1.87087185]
[1759189606107,0.13068298,114330.0,114320.0,1.87087185]
[1759189608004,0.13068298,114330.0,114320.0,1.87083185]
[1759189608608,0.1091225,114330.0,114320.0,1.87083185]
[1759189608809,0.10937834,114330.0,114320.0,2.23163185]
[1759189609009,0.0878125,114330.0,114320.0,2.23163185]
[1759189619407,0.0878125,114330.0,114320.0,1.44095185]
[1759189619604,0.0878125,114330.0,114320.0,2.23159185]
[1759189621708,0.0878125,114330.0,114320.0,2.29449932]
[1759189623206,0.0878125,114330.0,114320.0,1.74897506]
[1759189623402,0.0878125,114330.0,114320.0,2.29449932]
[1759189626218,0.0878125,114330.0,114320.0,2.02163861]
[1759189626722,0.0878125,114330.0,114320.0,1.74897506]
[1759189627019,0.0878125,114330.0,114320.0,2.02163861]
[1759189627421,0.0878125,114330.0,114320.0,1.74897506]
[1759189627615,0.0878125,114330.0,114320.0,2.02163861]
[1759189628314,0.0878125,114330.0,114320.0,0.95833506]
[1759189628519,0.1096925,114330.0,114320.0,1.57342361]
[1759189629720,0.1096925,114330.0,114320.0,1.66083851]
[1759189632014,0.13125366,114330.0,114320.0,1.66083851]
[1759189632214,0.13125366,114330.0,114320.0,1.59793104]
[1759189638828,0.1096925,114330.0,114320.0,1.66083851]
[1759189640224,0.1096925,114330.0,114320.0,1.59793104]
[1759189650130,0.1096925,114330.0,114320.0,1.66083851]
[1759189650635,0.1096925,114330.0,114320.0,1.59793104]
[1759189651939,0.1096925,114330.0,114320.0,1.66083851]
[1759189652835,0.1096925,114330.0,114320.0,0.87019851]
[1759189653034,0.1096925,114330.0,114320.0,1.66079851]
[1759189659438,0.1096925,114330.0,114320.0,1.38813496]
[1759189659845,0.1096925,114330.0,114320.0,1.66079851]
[1759189661238,0.13126928,114330.0,114320.0,1.59789104]
[1759189666257,0.1096925,114330.0,114320.0,1.59789104]
[1759189668059,0.13126897,114330.0,114320.0,1.59789104]
[1759189668862,0.1096925,114330.0,114320.0,1.95869104]
[1759189669068,0.13126874,114330.0,114320.0,1.95869104]
[1759189669360,0.1096925,114330.0,114320.0,1.95869104]
[1759189670061,0.1096925,114330.0,114320.0,2.02159851]
[1759189671557,0.1096925,114330.0,114320.0,1.95869104]
[1759189673061,0.0878125,114330.0,114320.0,1.95869104]
[1759189674557,0.0004,114330.0,114320.0,1.95869104]
[1759189674965,0.0874074,114330.0,114320.0,1.95869104]
[1759189675263,0.0878074,114330.0,114320.0,1.95869104]
[1759189675762,0.0878074,114330.0,114320.0,1.59789104]
[1759189675963,0.0004,114330.0,114320.0,1.95869104]
[1759189676465,0.0004,114330.0,114320.0,2.02159851]
[1759189677266,0.0004,114330.0,114320.0,1.95869104]
[1759189677762,0.0004,114330.0,114320.0,2.02159851]
[1759189679064,0.1101654,114340.0,114330.0,0.1226074]
[1759189679260,0.13244732,114340.0,114330.0,0.39527095]
[1759189679862,0.13244732,114340.0,114330.0,0.80527095]
[1759189680063,0.13244732,114340.0,114330.0,0.80774354]
[1759189682470,0.10968732,114340.0,114330.0,0.80774354]
[1759189683374,0.10968732,114340.0,114330.0,1.59826354]
[1759189684268,0.10968732,114340.0,114330.0,0.80774354]
[1759189684474,0.10968732,114340.0,114330.0,1.59826354]
[1759189685366,0.10968732,114340.0,114330.0,1.32559999]
[1759189685770,0.10968732,114340.0,114330.0,1.59826354]
[1759189686166,0.10968381,114340.0,114330.0,1.59826354]
[1759189686371,0.10968381,114340.0,114330.0,1.59821732]
[1759189687670,0.02227841,114340.0,114330.0,1.87083465]
[1759189688071,0.02147841,114340.0,114330.0,1.08031465]
[1759189688265,0.10927811,114340.0,114330.0,1.44111465]
[1759189688470,0.02187841,114340.0,114330.0,2.23159465]
[1759189688671,0.02187841,114340.0,114330.0,1.95897732]
[1759189688969,0.02187841,114340.0,114330.0,1.85008761]
[1759189689269,0.0004,114340.0,114330.0,2.70347508]
[1759189689772,0.0873923,114350.0,114340.0,0.58047466]
[1759189689964,0.0881923,114350.0,114340.0,0.58294725]
[1759189690972,0.0881923,114350.0,114340.0,0.67034695]
[1759189691172,0.0881923,114350.0,114340.0,1.46082695]
[1759189692780,0.0881923,114350.0,114340.0,0.67034695]
[1759189692980,0.0881923,114350.0,114340.0,1.46082695]
[1759189693483,0.1109523,114350.0,114340.0,0.91555229]
[1759189693684,0.1109523,114350.0,114340.0,1.46078695]
[1759189695986,0.1109523,114350.0,114340.0,0.12511229]
[1759189696288,0.1109523,114350.0,114340.0,1.46078695]
[1759189699192,0.1109523,114350.0,114340.0,0.67034695]
[1759189699494,0.1109523,114350.0,114340.0,1.46078695]
[1759189709697,0.1109523,114350.0,114340.0,0.67034695]
[1759189709898,0.1109523,114350.0,114340.0,1.46074695]
[1759189710498,0.1109523,114350.0,114340.0,1.37334725]
[1759189711194,0.1109523,114350.0,114340.0,1.46074695]
[1759189711394,0.0881923,114350.0,114340.0,1.46074695]
[1759189717104,0.1096123,114350.0,114340.0,1.46074695]
[1759189721408,0.1318723,114350.0,114340.0,0.67034695]
[1759189721608,0.1318723,114350.0,114340.0,1.46070695]
[1759189723610,0.1318723,114350.0,114340.0,0.67034695]
[1759189723912,0.1318723,114350.0,114340.0,1.46070695]
[1759189724310,0.1318723,114350.0,114340.0,0.67034695]
[1759189724511,0.40448963,114350.0,114340.0,1.37330725]
[1759189724712,0.1318723,114350.0,114340.0,0.58294725]
[1759189724912,0.1318723,114350.0,114340.0,1.37330725]
[1759189725112,0.1318723,114350.0,114340.0,1.46070695]
[1759189725515,0.40448963,114350.0,114340.0,1.46070695]
[1759189726313,0.40448963,114350.0,114340.0,0.67034695]
[1759189726614,0.40448963,114350.0,114340.0,1.46070695]
[1759189728815,0.40448963,114350.0,114340.0,0.67034695]
[1759189729013,0.40448963,114350.0,114340.0,1.46066695]
[1759189730619,0.40448963,114350.0,114340.0,0.97833976]
[1759189730819,0.40448963,114350.0,114340.0,1.52357442]
[1759189731318,0.41742963,114350.0,114340.0,0.73325442]
[1759189731519,0.41742963,114350.0,114340.0,1.51069442]
[1759189732117,0.41742963,114350.0,114340.0,1.23807709]
[1759189733221,0.41742963,114350.0,114340.0,1.17516962]
[1759189738426,0.1448123,114350.0,114340.0,1.18804962]
[1759189738724,0.41742963,114350.0,114340.0,1.18804962]
[1759189739220,0.41742963,114350.0,114340.0,1.46066695]
[1759189739924,0.41742963,114350.0,114340.0,1.18804962]
[1759189744830,0.41742963,114350.0,114340.0,1.59804962]
[1759189745428,0.41742963,114350.0,114340.0,1.87066695]
[1759189746731,0.41742963,114350.0,114340.0,1.93357442]
[1759189747030,0.41742963,114350.0,114340.0,1.87066695]
[1759189747923,0.1448123,114350.0,114340.0,1.87066695]
[1759189748125,0.41742963,114350.0,114340.0,1.87066695]
[1759189748322,0.1448123,114350.0,114340.0,1.59802662]
[1759189748830,0.1448123,114350.0,114340.0,1.66093409]
[1759189749032,0.1448123,114350.0,114340.0,1.59802662]
[1759189753136,0.1233923,114350.0,114340.0,1.59802662]
[1759189753337,0.14480765,114350.0,114340.0,1.59802662]
[1759189753836,0.50560765,114350.0,114340.0,1.59802662]
[1759189756340,0.14480765,114350.0,114340.0,1.59802662]
[1759189756539,0.50560765,114350.0,114340.0,1.59802662]
[1759189758537,0.50560765,114350.0,114340.0,1.32543229]
[1759189758743,0.50560765,114350.0,114340.0,1.59802662]
[1759189762850,0.50560765,114350.0,114340.0,0.80770662]
[1759189763146,0.50560765,114350.0,114340.0,1.59794662]
[1759189764949,0.50560765,114350.0,114340.0,0.80770662]
[1759189765145,0.50560765,114350.0,114340.0,1.59794662]
[1759189769558,0.49266765,114350.0,114340.0,1.59794662]
[1759189770351,0.49266765,114350.0,114340.0,1.32535229]
[1759189770551,0.49266765,114350.0,114340.0,1.59794662]
[1759189772358,0.49266765,114350.0,114340.0,1.32535229]
[1759189772564,0.49266765,114350.0,114340.0,1.59794662]
[1759189773056,0.10960765,114350.0,114340.0,1.59794662]
[1759189773455,0.0881923,114350.0,114340.0,1.66085409]
[1759189774458,0.0881923,114350.0,114340.0,2.06085409]
[1759189774764,0.0881921,114350.0,114340.0,2.06085409]
[1759189775361,0.0008,114350.0,114340.0,2.42165409]
[1759189775566,0.0873891,114360.0,114350.0,0.1167921]
[1759189775766,0.10960763,114360.0,114350.0,0.38938643]
[1759189776168,0.10960763,114360.0,114350.0,0.39185902]
[1759189783071,0.13100763,114360.0,114350.0,0.39185902]
[1759189783874,0.10960763,114360.0,114350.0,0.39185902]
[1759189784473,0.10880763,114360.0,114350.0,0.39185902]
[1759189784774,0.0873891,114360.0,114350.0,0.39185902]
[1759189785079,0.0877891,114360.0,114350.0,0.39185902]
[1759189785882,0.0877891,114360.0,114350.0,1.18205902]
[1759189787383,0.0877891,114360.0,114350.0,0.39185902]
[1759189787981,0.0877891,114360.0,114350.0,1.18205902]
[1759189788978,0.45281075,114370.0,114360.0,0.1103544]
[1759189789182,0.47501272,114370.0,114360.0,0.39564873]
[1759189789382,0.11421272,114370.0,114360.0,0.39564873]
[1759189789683,0.11381272,114370.0,114360.0,0.39564873]
[1759189789884,0.10918387,114370.0,114360.0,0.39564873]
[1759189790184,0.10918387,114370.0,114360.0,0.39812132]
[1759189791583,0.10918387,114370.0,114360.0,1.18828132]
[1759189791982,0.0877819,114370.0,114360.0,1.18828132]
[1759189792581,0.0877819,114370.0,114360.0,0.39812132]
[1759189792784,0.0877819,114370.0,114360.0,1.18828132]
[1759189793989,0.0877819,114370.0,114360.0,1.19695931]
[1759189796093,0.10882864,114370.0,114360.0,0.40679931]
[1759189796296,0.0877819,114370.0,114360.0,1.19695931]
[1759189797397,0.0877819,114370.0,114360.0,0.40679931]
[1759189797594,0.0877819,114370.0,114360.0,1.19695931]
[1759189807602,0.0877819,114370.0,114360.0,0.92436498]
[1759189807801,0.0877819,114370.0,114360.0,1.19695931]
[1759189808195,0.0877819,114370.0,114360.0,1.46927758]
[1759189808596,0.0877819,114370.0,114360.0,1.83007758]
[1759189813901,0.0877819,114370.0,114360.0,1.03991758]
[1759189814102,0.0877819,114370.0,114360.0,1.82995758]
[1759189814302,0.0877819,114370.0,114360.0,1.03991758]
[1759189814601,0.0877819,114370.0,114360.0,1.82995758]
[1759189814906,0.0877819,114370.0,114360.0,1.03991758]
[1759189815106,0.0877819,114370.0,114360.0,1.82995758]
[1759189815703,0.0877819,114370.0,114360.0,1.46915758]
[1759189815902,0.0877819,114370.0,114360.0,1.82995758]
[1759189817612,0.0877819,114370.0,114360.0,1.03991758]
[1759189817996,0.0877819,114370.0,114360.0,1.82995758]
[1759189821104,0.0877819,114370.0,114360.0,1.89286505]
[1759189824409,0.0877819,114370.0,114360.0,1.82995758]
[1759189825604,0.0877819,114370.0,114360.0,2.23995758]
[1759189827410,0.0877819,114370.0,114360.0,2.23127959]
[1759189829910,0.0877819,114370.0,114360.0,2.23998759]
[1759189834215,0.0877819,114370.0,114360.0,2.30289506]
[1759189834416,0.0877819,114370.0,114360.0,1.75798246]
[1759189834619,0.0877819,114370.0,114360.0,2.30289506]
[1759189841316,0.0877819,114370.0,114360.0,1.74927446]
[1759189841516,0.3816682,114370.0,114360.0,1.66217006]
[1759189841824,0.1092119,114370.0,114360.0,2.14417519]
[1759189842721,0.1092119,114370.0,114360.0,2.23155959]
[1759189843523,0.1092119,114370.0,114360.0,1.44123959]
[1759189843823,0.1092119,114370.0,114360.0,2.14573519]
[1759189845224,0.1092119,114370.0,114360.0,2.23311959]
[1759189848126,0.1092119,114370.0,114360.0,2.29602706]
[1759189849528,0.1092119,114370.0,114360.0,2.20864266]
[1759189849719,0.1092119,114370.0,114360.0,1.41676266]
[1759189850018,0.1092119,114370.0,114360.0,2.20896266]
[1759189850430,0.1092119,114370.0,114360.0,2.29634706]
[1759189851831,0.1092119,114370.0,114360.0,1.50414706]
[1759189852025,0.1092119,114370.0,114360.0,2.29634706]
[1759189852824,0.1092119,114370.0,114360.0,1.50414706]
[1759189853027,0.1092119,114370.0,114360.0,2.29634706]
[1759189856739,0.1092119,114370.0,114360.0,1.93554706]
[1759189856938,0.1092119,114370.0,114360.0,2.29634706]
[1759189857939,0.3945882,114370.0,114360.0,2.29622706]
[1759189859542,0.1221319,114370.0,114360.0,2.29622706]
[1759189861843,0.1221319,114370.0,114360.0,1.75131446]
[1759189862045,0.1221319,114370.0,114360.0,2.29622706]
[1759189862439,0.1221319,114370.0,114360.0,2.23331959]
[1759189863541,0.1221319,114370.0,114360.0,2.29622706]
[1759189864343,0.1221319,114370.0,114360.0,1.50414706]
[1759189864547,0.1221319,114370.0,114360.0,2.29614706]
[1759189864746,0.3945882,114370.0,114360.0,2.29614706]
[1759189864946,0.1221319,114370.0,114360.0,2.29614706]
[1759189870353,0.1221319,114370.0,114360.0,2.02372434]
[1759189871055,0.1221319,114370.0,114360.0,1.23172434]
[1759189871254,0.1221319,114370.0,114360.0,0.95923446]
[1759189871450,0.14376918,114370.0,114360.0,1.31478699]
[1759189871655,0.14376918,114370.0,114360.0,1.58727687]
[1759189873456,0.14376918,114370.0,114360.0,0.79531687]
[1759189873656,0.14376918,114370.0,114360.0,1.58743687]
[1759189874357,0.1221319,114370.0,114360.0,1.58743687]
[1759189874658,0.14376655,114370.0,114360.0,1.58743687]
[1759189875253,0.14376604,114370.0,114360.0,1.58743687]
[1759189876151,0.14376604,114370.0,114360.0,0.79531687]
[1759189876357,0.14376604,114370.0,114360.0,1.58739687]
[1759189876656,0.14376604,114370.0,114360.0,0.79531687]
[1759189876860,0.14376604,114370.0,114360.0,1.58739687]
[1759189880262,0.14376604,114370.0,114360.0,0.79531687]
[1759189880458,0.14376604,114370.0,114360.0,1.58727687]
[1759189880662,0.14376604,114370.0,114360.0,1.58723687]
[1759189881158,0.14376604,114370.0,114360.0,0.79531687]
[1759189881466,0.14376604,114370.0,114360.0,1.58723687]
[1759189882063,0.14376604,114370.0,114360.0,0.79531687]
[1759189882264,0.14376604,114370.0,114360.0,1.58731687]
[1759189882864,0.14376604,114370.0,114360.0,0.79531687]
[1759189883364,0.14376604,114370.0,114360.0,1.58723687]
[1759189884466,0.14376604,114370.0,114360.0,1.31474699]
[1759189884666,0.14376604,114370.0,114360.0,1.58723687]
[1759189884968,0.14376604,114370.0,114360.0,1.31474699]
[1759189886165,0.41625592,114370.0,114360.0,0.43544259]
[1759189886570,0.14376604,114370.0,114360.0,1.22736259]
[1759189886972,0.14376604,114370.0,114360.0,1.31474699]
[1759189887471,0.14376604,114370.0,114360.0,1.58723687]
[1759189888071,0.14372604,114370.0,114360.0,1.58723687]
[1759189913486,0.14372604,114370.0,114360.0,1.31474699]
[1759189915186,0.77701592,114370.0,114360.0,0.02544259]
[1759189915384,0.77701592,114370.0,114360.0,0.81632259]
[1759189915587,1.17701592,114370.0,114360.0,0.81668259]
[1759189917186,1.17701592,114370.0,114360.0,0.90406699]
[1759189917385,0.50452604,114370.0,114360.0,0.90406699]
[1759189917590,0.50452604,114370.0,114360.0,1.17655687]
[1759189918687,0.50452604,114370.0,114360.0,1.17659687]
[1759189919791,0.50452604,114370.0,114360.0,1.18929687]
[1759189920094,0.50452604,114370.0,114360.0,0.91680699]
[1759189920793,0.50452604,114370.0,114360.0,0.90410699]
[1759189926191,0.50452604,114370.0,114360.0,0.81672259]
[1759189926399,0.1107373,114330.0,114320.0,0.24125209]
[1759189926590,0.38322718,114330.0,114320.0,0.03501]
[1759189926894,0.39690718,114330.0,114320.0,0.44501]
[1759189927095,0.39690718,114330.0,114320.0,0.43231]
[1759189927287,0.75770718,114330.0,114320.0,1.22395]
[1759189927697,0.76660113,114330.0,114320.0,1.22395]
[1759189928096,0.76660113,114330.0,114320.0,0.81395]
[1759189928499,0.83634323,114330.0,114320.0,1.22395]
[1759189930092,0.83634323,114330.0,114320.0,0.43231]
[1759189930496,0.83634323,114330.0,114320.0,1.22391]
[1759189930796,0.83634323,114330.0,114320.0,0.43231]
[1759189930997,0.83634323,114330.0,114320.0,1.22391]
[1759189932197,0.83658806,114330.0,114320.0,1.22391]
[1759189934097,0.83658806,114330.0,114320.0,1.22387]
[1759189935500,0.83658806,114330.0,114320.0,0.43231]
[1759189935798,0.83658806,114330.0,114320.0,1.22383]
[1759189936493,0.5549594,114330.0,114320.0,1.22383]
[1759189936688,0.5549594,114330.0,114320.0,1.49656471]
[1759189936689,0.46689411,114330.0,114320.0,1.49656471]
[1759189936896,0.82769411,114330.0,114320.0,1.49656471]
[1759189937101,0.82769411,114330.0,114320.0,1.22383]
[1759189937294,0.82769411,114330.0,114320.0,1.49656471]
[1759189937598,0.82769411,114330.0,114320.0,1.22383]
[1759189937900,0.82769411,114330.0,114320.0,1.49656471]
[1759189940404,0.82769411,114330.0,114320.0,1.22383]
[1759189941004,0.82769411,114330.0,114320.0,0.81383]
[1759189947499,0.5549594,114330.0,114320.0,0.81383]
[1759189947705,0.82769411,114330.0,114320.0,0.81383]
[1759189949699,0.82769411,114330.0,114320.0,1.08656471]
[1759189950405,0.82769411,114330.0,114320.0,1.17397971]
[1759189951306,0.84922908,114330.0,114320.0,1.08656471]
[1759189951707,0.84922908,114330.0,114320.0,0.81383]
[1759189951909,0.84922908,114330.0,114320.0,1.08656471]
[1759189953610,0.84922908,114330.0,114320.0,1.17397971]
[1759189956913,0.84922908,114330.0,114320.0,0.901245]
[1759189957210,0.84922908,114330.0,114320.0,1.17397971]
[1759189957913,0.84922908,114330.0,114320.0,1.45946442]
[1759189957914,0.17868437,114330.0,114320.0,1.45946442]
[1759189958111,0.09127707,114330.0,114320.0,1.85946442]
[1759189958312,0.02153497,114330.0,114320.0,2.22026442]
[1759189958510,0.4482055,114340.0,114320.0,2.28317189]
[1759189958511,0.087401,114340.0,114320.0,2.28317189]
[1759189958718,0.10858847,114340.0,114330.0,0.38894201]
[1759189959214,0.10898847,114340.0,114330.0,0.38894201]
[1759189960410,0.087801,114340.0,114330.0,0.38894201]
[1759189961515,0.087801,114340.0,114330.0,1.18126201]
[1759189961714,0.087801,114340.0,114330.0,0.38894201]
[1759189961916,0.087801,114340.0,114330.0,1.18122201]
[1759189963510,0.087801,114340.0,114330.0,0.38894201]
[1759189963814,0.087801,114340.0,114330.0,1.18122201]
[1759189965520,0.109751,114340.0,114330.0,0.9084073]
[1759189965710,0.109751,114340.0,114330.0,1.18114201]
[1759189966110,0.109751,114340.0,114330.0,1.18122201]
[1759189967519,0.109751,114340.0,114330.0,0.38894201]
[1759189967723,0.109751,114340.0,114330.0,1.18122201]
[1759189969516,0.109751,114340.0,114330.0,1.18134201]
[1759189969924,0.109751,114340.0,114330.0,0.38894201]
[1759189970226,0.109751,114340.0,114330.0,1.18126201]
[1759189972220,0.108751,114340.0,114330.0,0.9085273]
[1759189972426,0.108751,114340.0,114330.0,1.18126201]
[1759189973825,0.108751,114340.0,114330.0,0.1162073]
[1759189974023,0.108751,114340.0,114330.0,1.09381471]
[1759189974325,0.108751,114340.0,114330.0,0.82108]
[1759189974527,0.39413571,114340.0,114330.0,1.09381471]
[1759189975025,0.39413571,114340.0,114330.0,1.08659471]
[1759189975227,0.39413571,114340.0,114330.0,1.08663471]
[1759189976120,0.39413571,114340.0,114330.0,1.09401471]
[1759189978930,0.39413571,114340.0,114330.0,0.29415471]
[1759189979228,0.39413571,114340.0,114330.0,0.81374]
[1759189979428,0.39413571,114340.0,114330.0,1.08647471]
[1759189981527,0.121401,114340.0,114330.0,1.08647471]
[1759189981727,0.39413571,114340.0,114330.0,1.08647471]
[1759189987332,0.41514256,114340.0,114330.0,1.08647471]
[1759189990835,0.41514256,114340.0,114330.0,0.29415471]
[1759189991036,0.41514256,114340.0,114330.0,1.08639471]
[1759189991934,0.41514256,114340.0,114330.0,1.17380201]
[1759189994348,0.14240785,114340.0,114330.0,0.9010673]
[1759190001545,0.14240785,114340.0,114330.0,1.18109064]
[1759190001546,0.12975785,114340.0,114330.0,1.18109064]
[1759190009256,0.12975785,114340.0,114330.0,0.38885064]
[1759190009456,0.12975785,114340.0,114330.0,1.18093064]
[1759190011757,0.108751,114340.0,114330.0,1.24383811]
[1759190014858,0.108751,114340.0,114330.0,0.97119477]
[1759190015059,0.108751,114340.0,114330.0,1.24383811]
[1759190015857,0.12976579,114340.0,114330.0,1.18093064]
[1759190019259,0.12976582,114340.0,114330.0,1.18093064]
[1759190021164,0.12976582,114340.0,114330.0,0.9082873]
[1759190021362,0.12976582,114340.0,114330.0,1.18057064]
[1759190021564,0.12976582,114340.0,114330.0,0.38885064]
[1759190021763,0.12976582,114340.0,114330.0,1.18049064]
[1759190022860,0.12976582,114340.0,114330.0,0.9078473]
[1759190023062,0.12976582,114340.0,114330.0,1.18049064]
[1759190028068,0.12976582,114340.0,114330.0,0.38885064]
[1759190028269,0.12976582,114340.0,114330.0,1.18025064]
[1759190028464,0.12976582,114340.0,114330.0,0.9076073]
[1759190028768,0.12976582,114340.0,114330.0,0.1162073]
[1759190028968,0.12976582,114340.0,114330.0,0.9076073]
[1759190031671,0.12976582,114340.0,114330.0,0.1162073]
[1759190031872,0.12976582,114340.0,114330.0,0.9075273]
[1759190034875,0.12976582,114340.0,114330.0,1.38043477]
[1759190036977,0.12976582,114340.0,114330.0,0.58911477]
[1759190037277,0.12976582,114340.0,114330.0,1.38027477]
[1759190038477,0.12976582,114340.0,114330.0,0.58911517]
[1759190038678,0.12976582,114340.0,114330.0,1.38027517]
[1759190039676,0.12976582,114340.0,114330.0,1.3173677]
[1759190041878,0.12976582,114340.0,114330.0,1.3172877]
[1759190042683,0.12976582,114340.0,114330.0,0.5262077]
[1759190042980,0.12976582,114340.0,114330.0,1.3172877]
[1759190045580,0.12976582,114340.0,114330.0,0.5262077]
[1759190045775,0.12976582,114340.0,114330.0,1.3172477]
[1759190045984,0.12976582,114340.0,114330.0,1.3172077]
[1759190046781,0.12976582,114340.0,114330.0,0.5262077]
[1759190046982,0.12976582,114340.0,114330.0,1.3176877]
[1759190048285,0.12976582,114340.0,114330.0,1.23028]
[1759190048484,0.40240916,114340.0,114330.0,1.23028]
[1759190048687,0.41608916,114340.0,114330.0,1.23024]
[1759190049388,0.41608916,114340.0,114330.0,0.4388]
[1759190049586,1.17684916,114340.0,114330.0,0.02142]
[1759190049781,0.1231677,114330.0,114320.0,0.08551747]
[1759190049981,0.77762586,114330.0,114320.0,0.02261]
[1759190050381,0.77762586,114330.0,114320.0,0.81425]
[1759190050987,0.77762586,114330.0,114320.0,0.81433]
[1759190051386,0.77762586,114330.0,114320.0,0.02261]
[1759190051587,0.77762586,114330.0,114320.0,0.81437]
[1759190052491,0.75661104,114330.0,114320.0,0.81437]
[1759190054191,0.75669803,114330.0,114320.0,0.81437]
[1759190060101,0.4839677,114330.0,114320.0,0.81437]
[1759190060295,0.75669803,114330.0,114320.0,0.81437]
[1759190062703,0.75669803,114330.0,114320.0,0.02261]
[1759190062891,0.75669803,114330.0,114320.0,0.81425]
[1759190067807,0.77782621,114330.0,114320.0,0.02261]
[1759190068105,0.77782621,114330.0,114320.0,0.81441]
[1759190068404,1.45055654,114330.0,114320.0,0.02261]
[1759190068606,0.1089029,114310.0,114300.0,0.81864969]
[1759190068796,0.38163323,114310.0,114300.0,1.99792969]
[1759190069298,0.1089029,114310.0,114300.0,1.99792969]
[1759190069701,0.3608,114320.0,114300.0,2.27066002]
[1759190069908,0.4697006,114320.0,114310.0,0.39496333]
[1759190070106,0.74243093,114320.0,114310.0,0.39496333]
[1759190070405,0.4697006,114320.0,114310.0,0.39496333]
[1759190070796,0.4697006,114320.0,114310.0,0.122233]
[1759190071206,0.4697006,114320.0,114310.0,0.39496333]
[1759190071506,0.74243093,114320.0,114310.0,0.39496333]
[1759190071802,0.4482206,114320.0,114310.0,0.39496333]
[1759190074410,0.4482206,114320.0,114310.0,0.80496333]
[1759190081909,0.4697006,114320.0,114310.0,0.532233]
[1759190082214,0.4482206,114320.0,114310.0,0.80496333]
[1759190083312,0.4482206,114320.0,114310.0,0.8678708]
[1759190084509,0.0874206,114320.0,114310.0,1.2286708]
[1759190084709,0.0878206,114320.0,114310.0,1.2286708]
[1759190085714,0.0878206,114320.0,114310.0,1.2297396]
[1759190086817,0.0878206,114320.0,114310.0,0.95700927]
[1759190087011,0.0878206,114320.0,114310.0,1.2297396]
[1759190094819,0.0878206,114320.0,114310.0,2.0229796]
[1759190095018,0.0878206,114320.0,114310.0,1.75024927]
[1759190095219,0.0878206,114320.0,114310.0,2.0229796]
[1759190096215,0.0878206,114320.0,114310.0,1.2297396]
[1759190096415,0.0878206,114320.0,114310.0,1.75024927]
[1759190096619,0.0878206,114320.0,114310.0,2.0229796]
[1759190097020,0.0878206,114320.0,114310.0,1.75024927]
[1759190097220,0.0878206,114320.0,114310.0,2.0229796]
[1759190097422,0.0878206,114320.0,114310.0,1.75024927]
[1759190097621,0.0878206,114320.0,114310.0,2.0229796]
[1759190098622,0.0878206,114320.0,114310.0,1.2297396]
[1759190098823,0.0878206,114320.0,114310.0,2.0236196]
[1759190101824,0.36055093,114320.0,114310.0,2.0236196]
[1759190102920,0.0878206,114320.0,114310.0,2.0236196]
[1759190103126,0.36055093,114320.0,114310.0,2.0236196]
[1759190104227,0.0878206,114320.0,114310.0,2.0236196]
[1759190104426,0.36055093,114320.0,114310.0,2.0236196]
[1759190104926,0.0878206,114320.0,114310.0,2.0236196]
[1759190105128,0.36055093,114320.0,114310.0,2.0236196]
[1759190105528,0.0878206,114320.0,114310.0,2.0236196]
[1759190113940,0.0878206,114320.0,114310.0,1.75088927]
[1759190114232,0.0878206,114320.0,114310.0,2.0236196]
[1759190114634,0.0878206,114320.0,114310.0,2.0233796]
[1759190116034,0.0878206,114320.0,114310.0,1.2297396]
[1759190116239,0.0878206,114320.0,114310.0,2.02329198]
[1759190117437,0.0878206,114320.0,114310.0,1.75060927]
[1759190117738,0.0878206,114320.0,114310.0,2.02329198]
[1759190123640,0.0878206,114320.0,114310.0,2.02297198]
[1759190124740,0.0878206,114320.0,114310.0,1.22969198]
[1759190124936,0.0878206,114320.0,114310.0,2.02281198]
[1759190125340,0.0878206,114320.0,114310.0,1.22969198]
[1759190125540,0.0878206,114320.0,114310.0,2.02281198]
[1759190128344,0.0878206,114320.0,114310.0,1.22969198]
[1759190128638,0.0878206,114320.0,114310.0,2.02265198]
[1759190130638,0.0878206,114320.0,114310.0,1.95974451]
[1759190130941,0.0878206,114320.0,114310.0,1.96030629]
[1759190140554,0.0878206,114320.0,114310.0,2.02321376]
[1759190141851,0.0878206,114320.0,114310.0,2.02372598]
[1759190148354,0.0004,114320.0,114310.0,2.42372598]
[1759190148562,0.0874077,114330.0,114320.0,0.1165559]
[1759190148750,0.0874077,114330.0,114320.0,0.45221775]
[1759190148952,0.0874077,114330.0,114320.0,0.45436055]
[1759190149251,0.0874077,114330.0,114320.0,0.86436055]
[1759190150654,0.0874077,114330.0,114320.0,1.22516055]
[1759190151162,0.0874014,114340.0,114330.0,0.1217939]
[1759190151351,0.0874014,114340.0,114330.0,1.18679661]
[1759190151966,0.0874014,114340.0,114330.0,1.18893941]
[1759190152464,0.0874014,114340.0,114330.0,1.54973941]
[1759190152665,0.0878014,114340.0,114330.0,1.54973941]
[1759190153467,0.0878014,114340.0,114330.0,1.55855552]
[1759190153863,0.0878014,114340.0,114330.0,1.28587281]
[1759190154064,0.0878014,114340.0,114330.0,1.55855552]
[1759190154269,0.0878014,114340.0,114330.0,1.28587281]
[1759190154568,0.0878014,114340.0,114330.0,1.55855552]
[1759190154971,0.0878014,114340.0,114330.0,0.76623552]
[1759190155264,0.0878014,114340.0,114330.0,1.55867552]
[1759190155466,0.0874014,114340.0,114330.0,1.55867552]
[1759190155666,0.0878014,114340.0,114330.0,1.55867552]
[1759190157671,0.0878014,114340.0,114330.0,1.55855552]
[1759190157870,0.0877933,114340.0,114330.0,1.55855552]
[1759190158071,0.0873933,114340.0,114330.0,1.10189737]
[1759190158271,0.0877933,114340.0,114330.0,1.62153466]
[1759190162566,0.0877933,114340.0,114330.0,1.89421737]
[1759190163074,0.0877933,114340.0,114330.0,1.62153466]
[1759190163773,0.0877933,114340.0,114330.0,1.26073466]
[1759190164073,0.0877933,114340.0,114330.0,1.62153466]
[1759190164870,0.0877933,114340.0,114330.0,2.23123823]
[1759190165074,0.0877934,114340.0,114330.0,2.23123823]
[1759190165472,0.0873934,114340.0,114330.0,2.23123823]